bitfinex/quotes_ETHUSD_20241216
["timestamp","ask_amount","ask_price","bid_price","bid_amount"]
[1734369811095,0.29194059,3985.0,3984.2,0.55]
[1734369811296,1.55,3985.0,3984.2,0.55]
[1734369811533,0.03137415,3984.9,3984.2,0.55]
[1734369811832,0.34451157,3984.9,3984.2,0.55]
[1734369812124,0.31313742,3984.9,3984.2,0.55]
[1734369812278,0.31313742,3984.9,3984.1,3.0]
[1734369812279,0.0313749,3984.8,3984.1,3.0]
[1734369812758,0.34451332,3984.9,3984.1,3.0]
[1734369812962,0.18945133,3984.8,3984.1,3.0]
[1734369813195,0.34451331,3984.9,3984.1,3.0]
[1734369813421,1.58137589,3985.0,3984.1,3.0]
[1734369814805,3.1,3985.0,3984.2,0.55]
[1734369815803,3.13137266,3985.0,3984.2,0.55]
[1734369817600,3.1,3986.4,3984.2,0.55]
[1734369817601,3.1,3986.4,3984.6,0.55]
[1734369817807,3.1,3986.4,3984.9,0.8068]
[1734369818122,1.55,3985.5,3985.2,0.55]
[1734369818320,2.89658227,3985.8,3985.4,3.55]
[1734369818467,2.89658227,3985.8,3985.7,3.7908]
[1734369818468,1.46917629,3985.8,3985.7,3.7908]
[1734369818673,1.46917629,3985.8,3985.7,2.19041432]
[1734369818911,1.46917629,3985.8,3985.7,5.8119887]
[1734369819228,1.46917629,3985.8,3985.7,1.96249852]
[1734369819432,3.1,3986.4,3985.7,1.96249852]
[1734369819433,3.1,3986.4,3985.8,0.55]
[1734369820122,8.08606864,3986.0,3985.9,2.20422937]
[1734369820418,5.30349831,3986.0,3985.9,2.20420447]
[1734369820622,5.30349831,3986.0,3985.9,5.04054739]
[1734369820818,5.30349831,3986.0,3985.9,2.04054739]
[1734369821168,5.25349831,3986.0,3985.9,1.3553]
[1734369821569,6.80349831,3986.0,3985.9,1.3553]
[1734369824073,6.5910746,3986.0,3985.9,1.3553]
[1734369825125,8.1410746,3986.0,3985.9,1.3553]
[1734369825269,8.1410746,3986.0,3985.9,1.50839168]
[1734369825476,7.21027463,3986.0,3985.9,1.50839168]
[1734369825671,1.45699681,3986.4,3986.0,4.3699]
[1734369825865,1.45699681,3986.4,3986.2,0.55]
[1734369826808,1.45699681,3986.4,3986.0,0.8199]
[1734369826809,0.45699681,3986.4,3986.1,0.55]
[1734369827171,0.45699681,3986.4,3986.0,1.345]
[1734369827370,15.03034262,3986.5,3986.2,0.55]
[1734369827584,7.26838447,3986.5,3986.4,4.3075]
[1734369827798,7.26838447,3986.5,3986.4,19.53065137]
[1734369828015,7.26838447,3986.5,3986.4,9.99230023]
[1734369828310,4.76738447,3986.5,3986.4,2.15566437]
[1734369828496,6.31738447,3986.5,3986.4,23.34195298]
[1734369828684,6.31738447,3986.5,3986.4,5.8105]
[1734369828878,6.31385447,3986.5,3986.4,1.3075]
[1734369829081,6.31295741,3986.5,3986.4,1.3075]
[1734369830489,6.31295741,3986.5,3986.4,1.90583546]
[1734369831899,7.86295741,3986.5,3986.4,1.90583546]
[1734369832836,7.86295741,3986.5,3986.4,1.89086446]
[1734369833039,7.86295741,3986.5,3986.4,6.39386446]
[1734369833243,2.79472379,3986.5,3986.4,19.71391522]
[1734369833532,2.79472379,3986.5,3986.4,31.83773725]
[1734369833533,0.70801652,3986.5,3986.4,31.83773725]
[1734369833824,1.50351089,3986.6,3986.5,5.2895]
[1734369834116,1.50351089,3986.6,3986.5,26.91800837]
[1734369834117,0.93811089,3986.6,3986.5,26.91800837]
[1734369834329,19.98,3988.2,3986.7,1.503]
[1734369834619,6.67606,3986.8,3986.7,17.74901074]
[1734369834812,4.80986,3986.8,3986.7,17.74901074]
[1734369835114,3.465203,3986.8,3986.7,17.74901074]
[1734369835278,0.11279473,3986.8,3986.7,19.07163978]
[1734369835480,0.33503193,3987.3,3986.9,1.503]
[1734369835683,0.33503193,3987.3,3987.2,2.8137]
[1734369835894,0.33503193,3987.3,3987.2,13.775219]
[1734369836093,0.33503193,3987.3,3987.2,5.8137]
[1734369836298,0.33503193,3987.3,3987.2,6.39507]
[1734369836614,0.33503193,3987.3,3987.2,6.57224635]
[1734369838220,5.86826793,3987.5,3987.3,5.053]
[1734369838522,6.47133259,3987.4,3985.6,1.02657088]
[1734369838831,0.03135499,3987.3,3984.6,0.12534574]
[1734369838989,0.03135499,3987.3,3983.9,1.02657088]
[1734369838990,3.47133259,3986.4,3983.9,0.17919092]
[1734369839184,3.47133259,3986.4,3983.3,1.53961924]
[1734369839185,0.03136486,3986.3,3983.2,1.02657088]
[1734369839527,0.03136486,3986.3,3983.3,1.52809371]
[1734369839698,3.91982679,3987.4,3983.0,0.25]
[1734369839699,0.03136734,3987.0,3984.1,0.02509387]
[1734369839899,3.47133259,3986.8,3984.2,0.25524244]
[1734369840115,3.3613645,3986.7,3984.3,0.0250916]
[1734369840418,3.47133259,3986.5,3984.2,0.25524244]
[1734369840591,0.03136512,3986.4,3984.2,0.25524244]
[1734369840794,0.26367036,3986.4,3984.2,0.25524244]
[1734369841103,0.60580554,3986.3,3984.3,0.29060914]
[1734369841302,0.3735003,3986.3,3984.3,0.29060914]
[1734369841501,0.23237393,3986.2,3984.3,0.29060914]
[1734369841807,0.40486542,3986.3,3984.4,0.55]
[1734369842021,0.2323825,3986.2,3984.4,0.55]
[1734369842221,0.41085805,3986.1,3984.4,0.55]
[1734369842595,0.40486542,3986.3,3984.4,0.55]
[1734369842596,0.3735003,3986.3,3984.4,0.55]
[1734369842904,4.88,3986.5,3984.4,0.55]
[1734369843091,0.23244753,3986.4,3984.4,0.55]
[1734369843436,4.88,3986.5,3985.2,3.0]
[1734369843639,4.88,3986.5,3985.3,0.57508456]
[1734369843795,4.88,3986.5,3985.3,0.55]
[1734369843992,4.88,3986.5,3985.6,0.55]
[1734369844196,4.88,3986.5,3985.8,0.55]
[1734369844429,4.88,3986.5,3986.4,3.0]
[1734369844652,4.88,3986.5,3986.4,0.55]
[1734369847426,4.88,3986.5,3984.5,0.25]
[1734369847699,3.33,3986.0,3984.6,0.02508526]
[1734369847901,3.33,3986.0,3984.8,0.1278068]
[1734369848371,3.33,3986.0,3984.6,0.13730944]
[1734369848540,0.03136044,3985.9,3984.6,0.13730944]
[1734369848833,3.33,3986.0,3984.6,0.13730944]
[1734369849866,3.33,3986.0,3984.7,0.55]
[1734369849997,3.33,3986.0,3984.9,0.55]
[1734369850352,3.33,3986.0,3985.8,0.55]
[1734369851909,3.33,3986.0,3985.6,0.55]
[1734369854209,3.33,3986.0,3985.5,0.7595]
[1734369854210,3.33,3986.0,3985.8,2.053]
[1734369855445,3.33,3986.0,3985.9,8.12979]
[1734369855646,3.33,3986.0,3985.9,7.483279]
[1734369855810,2.57554687,3986.0,3985.9,9.776379]
[1734369856016,8.21,3986.5,3985.9,9.776379]
[1734369856212,8.21,3986.5,3986.1,1.503]
[1734369856438,8.21,3986.5,3986.3,1.503]
[1734369856753,8.21,3986.5,3986.4,2.2033]
[1734369857367,8.21,3986.5,3986.4,17.024945]
[1734369857530,8.21,3986.5,3986.4,18.710463]
[1734369857746,6.66,3986.7,3986.5,3.0]
[1734369858041,0.63408345,3986.7,3986.6,5.8329]
[1734369858644,0.63408345,3986.7,3986.6,24.066807]
[1734369858869,0.63408345,3986.7,3986.6,31.592104]
[1734369859015,0.48708339,3986.7,3986.6,36.121786]
[1734369859212,3.1,3988.0,3987.1,0.55]
[1734369859515,3.1,3988.0,3987.4,5.8304]
[1734369860133,7.2520572,3987.5,3987.4,36.119286]
[1734369860317,7.06226706,3987.5,3987.4,39.22940244]
[1734369860512,0.80891753,3987.6,3987.4,39.22940244]
[1734369860730,3.1,3988.0,3987.7,1.503]
[1734369860911,3.1,3988.0,3987.9,1.503]
[1734369861119,3.1,3988.0,3987.9,15.407268]
[1734369861345,3.1,3988.0,3987.9,26.445048]
[1734369861652,3.1,3988.0,3987.9,31.10227936]
[1734369861852,3.1,3988.0,3987.9,29.66545773]
[1734369862355,3.1,3988.0,3987.9,16.89765736]
[1734369862572,3.1,3988.0,3987.9,16.40627662]
[1734369862888,3.1,3988.0,3987.5,4.503]
[1734369863035,3.1,3988.0,3987.5,1.503]
[1734369864176,3.1,3988.0,3987.6,0.55]
[1734369864873,3.13134097,3988.0,3987.0,1.02657088]
[1734369865039,2.55613921,3987.9,3986.1,2.07877088]
[1734369865238,2.55613921,3987.9,3986.2,3.17141342]
[1734369865463,2.55613921,3987.9,3986.3,2.11996085]
[1734369865662,2.55613921,3987.9,3986.4,0.02507651]
[1734369865861,0.89861392,3987.8,3986.4,0.15223046]
[1734369866061,3.33,3987.2,3986.5,1.503]
[1734369866474,3.33,3987.2,3986.6,0.55]
[1734369867240,3.33,3987.2,3986.4,0.12715395]
[1734369867442,1.0200418,3986.4,3986.2,1.503]
[1734369867646,1.0200418,3986.4,3986.3,0.24644025]
[1734369868280,1.0200418,3986.4,3986.3,4.02184025]
[1734369868579,1.0200418,3986.4,3986.3,2.29944025]
[1734369868807,1.0200418,3986.4,3986.3,8.93516025]
[1734369868999,1.0200418,3986.4,3986.3,2.29944025]
[1734369869156,1.0200418,3986.4,3986.3,7.55217025]
[1734369869795,1.0200418,3986.4,3986.3,5.29944025]
[1734369869995,1.0200418,3986.4,3986.3,13.37940633]
[1734369870245,1.0200418,3986.4,3986.3,10.70491233]
[1734369871094,1.0200418,3986.4,3986.3,10.40982333]
[1734369871973,3.33,3987.2,3986.3,13.07664202]
[1734369872159,0.66392789,3987.2,3986.7,2.053]
[1734369872359,0.10192789,3987.2,3987.1,2.053]
[1734369872639,3.33,3987.6,3987.3,1.503]
[1734369872775,3.33,3987.6,3987.5,2.053]
[1734369873096,3.33,3987.6,3987.5,8.6169]
[1734369873990,3.33,3987.6,3987.5,6.0578]
[1734369876662,3.33,3987.6,3987.5,5.5078]
[1734369878302,3.33,3987.6,3987.5,6.0578]
[1734369878611,3.33,3987.6,3987.5,7.5608]
[1734369880244,3.00480469,3987.6,3987.5,40.485686]
[1734369880555,3.00480469,3987.6,3987.5,42.90718511]
[1734369880858,3.00480469,3987.6,3987.5,42.70408911]
[1734369881006,2.84480469,3987.6,3987.5,43.12796983]
[1734369881200,2.46697906,3987.6,3987.5,44.04266875]
[1734369881451,2.46697906,3987.6,3987.5,17.10671811]
[1734369881834,2.28188006,3987.6,3987.5,17.95156434]
[1734369882057,2.28188006,3987.6,3987.5,16.85350611]
[1734369883560,2.28188006,3987.6,3987.5,14.21750611]
[1734369884044,2.28188006,3987.6,3987.5,14.48861711]
[1734369884367,2.28188006,3987.6,3987.5,6.43229911]
[1734369884545,2.28188006,3987.6,3987.5,10.080774]
[1734369884902,2.28188006,3987.6,3987.5,7.730732]
[1734369885511,2.28188006,3987.6,3987.5,11.280732]
[1734369885512,1.42227533,3987.6,3987.5,11.280732]
[1734369885909,1.42227533,3987.6,3987.5,12.12523101]
[1734369886110,1.42227533,3987.6,3987.5,11.280732]
[1734369886330,1.42227533,3987.6,3987.5,15.60965129]
[1734369886913,1.42227533,3987.6,3987.5,16.45447512]
[1734369887309,3.1,3988.0,3987.8,3.0]
[1734369887510,0.3187406,3988.0,3987.9,25.322327]
[1734369887837,0.3187406,3988.0,3987.9,28.67473953]
[1734369888009,0.3187406,3988.0,3987.9,31.0626438]
[1734369888210,0.3187406,3988.0,3987.9,32.33039209]
[1734369889133,0.3187406,3988.0,3987.9,37.34243709]
[1734369889324,0.17929158,3988.0,3987.9,34.68899197]
[1734369889525,0.17929158,3988.0,3987.9,33.75460697]
[1734369890139,0.17929158,3988.0,3987.9,25.72286109]
[1734369890732,0.17929158,3988.0,3987.9,25.8784541]
[1734369892028,0.17929158,3988.0,3987.9,24.3346841]
[1734369892228,0.17929158,3988.0,3987.9,17.37918761]
[1734369892850,0.17929158,3988.0,3987.9,16.53416328]
[1734369893226,0.17929158,3988.0,3987.9,17.37856477]
[1734369893425,0.17929158,3988.0,3987.9,16.37857027]
[1734369893959,0.17929158,3988.0,3987.9,18.48920491]
[1734369894330,13.32,3988.1,3988.0,5.053]
[1734369894659,19.322267,3988.2,3988.0,42.67951081]
[1734369894834,19.010667,3988.2,3988.1,37.45252064]
[1734369895047,19.010667,3988.2,3988.1,40.98659152]
[1734369895242,17.477167,3988.2,3988.1,40.98659152]
[1734369895422,13.76931304,3988.2,3988.1,40.98061535]
[1734369895622,13.76931304,3988.2,3988.1,42.34792491]
[1734369895837,11.86531304,3988.2,3988.1,42.05778391]
[1734369896034,10.09551304,3988.2,3988.1,42.05778391]
[1734369896250,5.42041304,3988.2,3988.1,45.28659542]
[1734369896965,5.20421304,3988.2,3988.1,45.28659542]
[1734369897466,5.20421304,3988.2,3988.1,46.38297618]
[1734369897659,5.20421304,3988.2,3988.1,47.91536518]
[1734369898673,5.20421304,3988.2,3988.1,46.38297618]
[1734369898822,5.20421304,3988.2,3988.1,47.91606552]
[1734369899027,5.20421304,3988.2,3988.1,46.38297618]
[1734369899227,5.20421304,3988.2,3988.1,48.44149369]
[1734369899438,5.20421304,3988.2,3988.1,46.38297618]
[1734369899635,3.35026495,3988.2,3988.1,48.93627563]
[1734369900239,3.35026495,3988.2,3988.1,46.38297618]
[1734369900865,3.35026495,3988.2,3988.1,49.10270094]
[1734369901068,3.35026495,3988.2,3988.1,44.78769494]
[1734369901361,3.35026495,3988.2,3988.1,42.23435494]
[1734369901939,1.71406595,3988.2,3988.1,44.34943284]
[1734369902138,1.71406595,3988.2,3988.1,42.23435494]
[1734369902374,1.71406595,3988.2,3988.1,44.34882056]
[1734369902578,18.91319281,3988.3,3988.2,7.689]
[1734369902869,18.91319281,3988.3,3988.2,45.98223193]
[1734369903069,18.91319281,3988.3,3988.2,48.53941987]
[1734369904167,10.15493816,3988.3,3988.2,48.53941987]
[1734369904367,10.15493816,3988.3,3988.2,45.98223193]
[1734369904868,1.39668351,3988.3,3988.2,45.98223193]
[1734369905168,1.23618351,3988.3,3988.2,45.98223193]
[1734369905334,26.10579529,3988.4,3988.2,45.98223193]
[1734369905530,26.10579529,3988.4,3988.3,44.16981691]
[1734369905774,26.10579529,3988.4,3988.3,48.72376647]
[1734369906071,26.10579529,3988.4,3988.3,30.13374234]
[1734369907140,26.08157217,3988.4,3988.3,30.64525447]
[1734369907348,26.08157217,3988.4,3988.3,28.59860491]
[1734369908581,26.08157217,3988.4,3988.3,9.53747988]
[1734369908784,26.08157217,3988.4,3988.3,10.80098175]
[1734369908987,26.08157217,3988.4,3988.3,9.955048]
[1734369909160,18.82131717,3988.4,3988.3,9.955048]
[1734369909486,18.82131717,3988.4,3988.3,10.80242418]
[1734369909785,18.82131717,3988.4,3988.3,9.67909]
[1734369909989,18.07911717,3988.4,3988.3,12.16269555]
[1734369910355,18.07911717,3988.4,3988.3,12.16274726]
[1734369910577,18.07911717,3988.4,3988.3,14.31533608]
[1734369910892,17.91911717,3988.4,3988.3,14.31533608]
[1734369911349,17.91911717,3988.4,3988.3,15.16287]
[1734369911546,17.91911717,3988.4,3988.3,12.76328]
[1734369911769,17.91911717,3988.4,3988.3,11.91574608]
[1734369911988,17.91911717,3988.4,3988.3,12.76328421]
[1734369912184,17.91911717,3988.4,3988.3,11.91574608]
[1734369912387,17.91911717,3988.4,3988.3,12.76341509]
[1734369913091,15.47801718,3988.4,3988.3,12.76341509]
[1734369913261,15.47801718,3988.4,3988.3,14.03489973]
[1734369913466,15.47801718,3988.4,3988.3,9.49421509]
[1734369913765,15.47801718,3988.4,3988.3,8.64654608]
[1734369914308,15.47801718,3988.4,3988.3,9.49465988]
[1734369914510,15.47801718,3988.4,3988.3,2.5073]
[1734369915170,15.47801718,3988.4,3987.0,0.15543043]
[1734369915373,0.03134839,3988.3,3986.4,1.02444124]
[1734369915571,0.03134839,3988.3,3986.6,1.502]
[1734369915572,1.93179329,3988.2,3986.6,1.502]
[1734369915767,0.03135256,3988.1,3986.6,1.502]
[1734369915968,0.03135256,3988.1,3985.8,1.02444124]
[1734369915969,0.25,3987.9,3985.8,1.02444124]
[1734369916196,0.25,3987.9,3985.2,2.56366574]
[1734369916197,3.33,3986.9,3985.3,1.02444124]
[1734369916509,0.333,3986.8,3985.4,2.12322086]
[1734369916805,0.333,3986.8,3985.4,1.502]
[1734369917008,0.333,3986.8,3985.6,1.502]
[1734369917759,0.333,3986.8,3985.8,1.502]
[1734369918010,3.33,3986.9,3985.9,2.052]
[1734369918368,3.33,3986.9,3985.3,3.66044124]
[1734369918369,3.33,3986.9,3985.7,0.55]
[1734369918572,3.33,3986.9,3985.9,0.55]
[1734369918993,3.33,3986.4,3985.7,0.55]
[1734369919315,3.33,3986.4,3985.5,4.502]
[1734369919316,3.33,3986.4,3985.9,0.55]
[1734369919701,2.66879996,3986.9,3986.1,0.55]
[1734369919907,15.47801718,3988.4,3986.3,3.55]
[1734369920101,15.47801718,3988.4,3986.5,0.55]
[1734369920296,15.47801718,3988.4,3986.7,0.55]
[1734369920500,2.58748483,3988.3,3986.7,0.55]
[1734369920699,2.58748483,3988.3,3986.5,0.55]
[1734369920700,2.55613921,3988.3,3986.5,0.55]
[1734369920904,2.58748548,3988.3,3986.5,0.55]
[1734369921409,3.33,3986.8,3986.5,0.55]
[1734369921593,3.33,3986.8,3986.4,3.0]
[1734369922311,3.33,3986.8,3986.5,0.56696947]
[1734369922610,3.33,3986.8,3986.4,3.0]
[1734369923190,3.33,3986.8,3986.5,0.55]
[1734369924015,2.8974,3986.8,3986.5,0.55]
[1734369924511,1.9074,3986.8,3986.5,0.55]
[1734369924713,0.9174,3986.8,3986.5,0.55]
[1734369925015,15.47801718,3988.4,3986.7,3.55]
[1734369925711,0.03134451,3988.3,3986.7,0.55]
[1734369925911,0.03134451,3988.3,3986.6,0.55]
[1734369926110,15.47801718,3988.4,3986.5,0.55]
[1734369926412,2.55613921,3988.3,3986.5,0.55]
[1734369926976,3.33,3987.4,3986.5,0.55]
[1734369928626,3.33,3987.4,3986.8,1.502]
[1734369928782,3.33,3987.4,3986.9,2.052]
[1734369928980,3.33,3987.4,3986.9,0.55]
[1734369929178,3.33,3987.4,3986.3,2.66969475]
[1734369929179,0.333,3987.3,3986.7,2.052]
[1734369929500,3.33,3987.2,3986.3,2.66969475]
[1734369929887,3.33,3987.2,3986.3,4.17169475]
[1734369930298,3.33,3987.2,3986.5,1.502]
[1734369930491,3.996,3987.2,3986.4,3.0]
[1734369930698,3.996,3987.2,3986.5,0.55]
[1734369931735,0.031354,3987.1,3986.5,0.55]
[1734369931884,6.66,3987.2,3986.5,2.0770832]
[1734369932216,6.66,3987.2,3987.0,0.55]
[1734369933077,6.66,3987.2,3986.9,0.55]
[1734369933211,6.66,3987.2,3986.7,3.0]
[1734369933212,6.66,3987.2,3986.7,0.55]
[1734369933413,6.66,3987.2,3986.4,0.55]
[1734369933726,0.03135518,3987.1,3986.4,0.55]
[1734369933920,0.66913552,3987.0,3986.4,0.55]
[1734369934548,3.33,3986.9,3986.4,0.55]
[1734369935342,3.33,3986.9,3986.4,3.55]
[1734369936051,3.33,3986.9,3986.4,5.052]
[1734369937024,3.33,3986.9,3986.4,5.05]
[1734369937455,6.66,3986.9,3986.4,5.05]
[1734369937843,6.66,3986.9,3986.4,3.548]
[1734369938763,7.992,3986.9,3986.4,3.0]
[1734369938959,0.03135712,3986.8,3986.3,2.5086]
[1734369939181,0.031359,3986.8,3986.3,2.5086]
[1734369939941,3.33,3986.4,3986.3,2.5086]
[1734369940350,3.33,3986.4,3985.3,1.502]
[1734369940544,3.33,3986.4,3985.4,0.55]
[1734369940545,0.36436266,3986.3,3985.4,0.55]
[1734369940739,0.36436266,3986.3,3985.0,0.7437]
[1734369940944,0.36436266,3986.3,3985.0,2.39869411]
[1734369941468,0.333,3986.3,3985.0,2.39869411]
[1734369941667,0.333,3986.3,3985.2,1.502]
[1734369942211,0.333,3986.3,3985.3,2.052]
[1734369943466,0.333,3986.3,3985.1,3.23986941]
[1734369943467,0.333,3986.3,3986.0,0.7437]
[1734369944045,0.36436242,3986.3,3986.0,0.7437]
[1734369944710,0.333,3986.3,3986.0,0.7437]
[1734369945006,0.3663,3986.2,3986.0,0.7437]
[1734369945971,0.3976622,3986.2,3986.0,0.7437]
[1734369946371,0.3663,3986.2,3986.0,0.7437]
[1734369946658,0.39766208,3986.2,3986.0,0.7437]
[1734369947957,0.3663,3986.2,3986.0,0.7437]
[1734369948455,0.3727663,3986.1,3986.0,0.7437]
[1734369949364,0.40412887,3986.1,3986.0,0.7437]
[1734369949552,0.65412887,3986.1,3986.0,0.7437]
[1734369951297,0.5,3985.6,3985.0,0.7437]
[1734369951621,0.25,3985.3,3985.0,0.7437]
[1734369951798,0.25,3985.3,3984.0,2.52733055]
[1734369951799,0.25,3984.8,3984.0,2.52733055]
[1734369952105,0.03137897,3984.7,3984.0,2.52733055]
[1734369953159,0.25,3984.9,3984.0,2.52733055]
[1734369953160,0.03137896,3984.6,3984.0,2.52733055]
[1734369953981,0.25,3984.8,3984.0,2.52733055]
[1734369954477,0.0313791,3984.7,3984.0,2.52733055]
[1734369956808,0.25,3984.8,3984.0,2.52733055]
[1734369957401,0.25,3984.9,3984.0,2.52733055]
[1734369957703,0.5,3985.2,3984.0,2.52733055]
[1734369957910,0.65517274,3985.2,3984.0,2.52733055]
[1734369958115,0.68655041,3985.2,3984.0,2.52733055]
[1734369958529,0.12673948,3985.1,3984.0,2.7800636]
[1734369958682,0.25,3985.6,3984.1,0.55]
[1734369958878,0.03137426,3985.5,3984.1,0.55]
[1734369959179,0.1243458,3985.4,3984.1,0.55]
[1734369959520,0.03137466,3985.3,3984.1,0.55]
[1734369959686,0.03137466,3985.3,3984.1,3.55]
[1734369960201,0.03137466,3985.3,3984.1,3.0]
[1734369960401,0.25,3985.0,3984.0,2.52733055]
[1734369960604,0.03137835,3984.9,3984.0,2.52733055]
[1734369961507,0.03137629,3985.2,3984.1,0.25273305]
[1734369961681,0.03137629,3985.2,3984.0,2.52733055]
[1734369962285,0.1243458,3985.4,3984.1,3.0]
[1734369962521,0.03137483,3985.3,3984.1,3.0]
[1734369963502,0.03137483,3985.3,3984.2,0.55]
[1734369963698,0.03137408,3986.0,3984.2,0.55]
[1734369964066,0.03137382,3985.9,3984.3,0.60773305]
[1734369964204,0.12341223,3985.5,3984.3,0.60773305]
[1734369964543,0.0313733,3985.9,3984.5,0.8144]
[1734369964846,3.33,3986.4,3984.8,2.052]
[1734369965136,0.03136362,3986.3,3985.1,0.55]
[1734369965336,3.33,3986.4,3985.1,0.55]
[1734369965337,0.03136353,3986.2,3985.1,0.55]
[1734369965842,0.03136353,3986.2,3985.0,0.55]
[1734369966555,0.03136353,3986.2,3984.1,3.0]
[1734369966839,0.03136353,3986.2,3984.1,3.8188]
[1734369967045,0.18551086,3986.2,3984.1,3.8188]
[1734369967339,0.70955109,3986.1,3984.1,3.8188]
[1734369967538,0.03137198,3986.0,3984.1,3.8188]
[1734369967903,0.03137198,3986.0,3984.4,0.55]
[1734369968962,0.03137198,3986.0,3984.1,3.8188]
[1734369968963,0.28137198,3986.0,3984.1,3.0]
[1734369969835,0.28137198,3986.0,3984.2,0.55]
[1734369970210,0.70955109,3986.1,3984.2,0.57509889]
[1734369970422,0.70955109,3986.1,3984.2,0.55]
[1734369970821,0.03137187,3986.0,3984.2,0.55]
[1734369971036,0.03137187,3986.0,3984.4,0.55]
[1734369973508,3.33,3985.8,3984.4,0.55]
[1734369974173,0.03136996,3985.7,3984.5,0.8185]
[1734369974429,0.03136996,3985.7,3984.6,0.55]
[1734369977017,0.03136996,3985.7,3984.4,0.55]
[1734369977213,0.336137,3985.6,3984.2,0.55]
[1734369977446,3.33,3985.8,3984.3,0.02509743]
[1734369977651,3.33,3985.8,3984.2,0.55]
[1734369977854,3.3613682,3985.8,3984.2,0.55]
[1734369978056,3.33,3985.8,3984.4,0.55]
[1734369978622,0.03136833,3985.7,3984.4,0.55]
[1734369979057,3.36136833,3985.8,3984.4,0.55]
[1734369979291,3.33,3985.8,3984.4,0.55]
[1734369979427,3.33,3985.8,3984.5,0.82039464]
[1734369979624,3.33,3985.8,3985.6,0.55]
[1734369980257,3.33,3985.8,3985.5,0.55]
[1734369980459,3.33,3985.8,3985.5,3.55]
[1734369980790,3.33,3985.8,3985.5,0.55]
[1734369980928,3.33,3985.8,3985.6,0.13453]
[1734369981124,3.33,3985.8,3985.7,0.55]
[1734369981691,3.33,3985.8,3985.5,0.55]
[1734369981896,3.33,3985.8,3985.4,0.7953]
[1734369982101,3.33,3985.8,3985.2,0.55]
[1734369982397,3.33,3985.8,3985.4,0.55]
[1734369982949,3.33,3985.8,3984.6,1.02562977]
[1734369982950,0.03136397,3985.7,3984.6,1.02562977]
[1734369983264,0.03136397,3985.7,3984.6,0.20572977]
[1734369983565,0.03136397,3985.7,3984.2,0.8199]
[1734369983960,0.03136397,3985.7,3984.0,2.52733055]
[1734369985092,0.03136397,3985.7,3984.1,3.0]
[1734369985398,0.03136397,3985.7,3984.2,0.55]
[1734369985605,0.3361364,3985.6,3984.2,0.55]
[1734369985805,0.03137361,3985.5,3984.2,0.55]
[1734369985954,0.03137361,3985.5,3984.1,3.0]
[1734369986149,0.28137361,3985.5,3984.0,2.52733055]
[1734369986397,0.419751,3985.4,3984.0,2.52733055]
[1734369986603,0.25,3985.2,3984.0,2.52733055]
[1734369986783,2.28857016,3985.1,3984.0,2.52733055]
[1734369987102,1.07344003,3985.1,3984.0,2.52733055]
[1734369987250,0.03137771,3985.1,3984.0,2.52733055]
[1734369987454,0.132344,3985.0,3984.0,2.52733055]
[1734369987650,0.03137771,3984.9,3984.0,2.52733055]
[1734369988205,0.03137771,3984.9,3984.0,8.52733055]
[1734369989352,0.0313777,3984.9,3984.0,8.52733055]
[1734369989752,0.132344,3985.0,3984.0,8.52733055]
[1734369989980,0.16372169,3985.0,3984.0,8.52733055]
[1734369990381,0.03137769,3985.0,3984.0,9.38006361]
[1734369991052,0.03137595,3985.3,3984.0,9.38006361]
[1734369991483,0.03137595,3985.3,3984.0,8.52733055]
[1734369993040,0.12576882,3985.2,3984.0,8.52733055]
[1734369993284,0.03137594,3985.1,3984.0,8.52733055]
[1734369994065,0.12576882,3985.2,3984.0,8.52733055]
[1734369994263,0.03137593,3985.1,3984.0,8.52733055]
[1734369994652,0.12576882,3985.2,3984.0,8.52733055]
[1734369994867,0.03137593,3985.1,3984.0,8.52733055]
[1734369995047,0.17353472,3985.2,3984.0,8.52733055]
[1734369995273,0.419751,3985.4,3984.0,8.52733055]
[1734369995661,0.03137452,3985.3,3984.0,8.52733055]
[1734369996807,0.12306196,3985.4,3984.1,3.0]
[1734369996953,3.36137345,3985.7,3984.2,0.55]
[1734369997154,3.36137345,3985.7,3984.5,0.8065]
[1734369997555,3.33,3985.7,3984.6,0.55]
[1734369997792,3.33,3985.7,3984.7,0.43565]
[1734369998586,3.33,3985.7,3984.8,0.55]
[1734370000584,0.0313676,3985.6,3984.1,3.0]
[1734370000782,0.0313676,3985.6,3984.0,9.45013838]
[1734370000783,0.0313676,3985.6,3984.0,8.52733055]
[1734370000980,3.06819908,3985.5,3984.0,8.52733055]
[1734370001185,1.04206232,3985.3,3984.0,8.52733055]
[1734370001481,0.03137651,3985.2,3984.0,8.52733055]
[1734370002102,0.03137651,3985.2,3984.1,3.0]
[1734370003410,1.07343883,3985.2,3984.0,8.52733055]
[1734370003707,1.04206232,3984.8,3984.0,8.52733055]
[1734370003873,1.04206232,3984.6,3984.0,8.52733055]
[1734370004066,0.12504101,3984.8,3984.0,8.52733055]
[1734370004318,0.03137702,3985.0,3984.0,8.52733055]
[1734370005393,0.15792138,3985.0,3984.0,8.52733055]
[1734370005883,0.14784309,3984.9,3984.0,8.52733055]
[1734370006078,0.03137689,3984.8,3984.0,8.52733055]
[1734370006676,0.14784309,3984.9,3984.0,8.52733055]
[1734370007024,0.03137688,3984.8,3984.0,8.52733055]
[1734370008012,1.21655322,3984.7,3984.0,8.52733055]
[1734370008231,0.27516179,3984.6,3984.0,8.52733055]
[1734370008950,0.24378355,3984.6,3984.0,8.52733055]
[1734370009262,3.33,3984.9,3984.0,8.52733055]
[1734370010302,0.03137685,3984.8,3984.0,8.52733055]
[1734370010808,1.2476607,3984.8,3984.0,8.52733055]
[1734370011139,0.57462674,3984.7,3984.0,8.52733055]
[1734370011354,0.03137787,3984.6,3984.0,8.52733055]
[1734370011828,0.57462674,3984.7,3984.0,8.52733055]